[Event "FIDE WCCC G12 2018"]
[Site "Santiago de Compostela"]
[Date "2018.11.14"]
[Round "10"]
[White "Zavivaeva, Emilia"]
[Black "Shuqja, Klean"]
[Result "1-0"]
[ECO "B01"]
[WhiteElo "1633"]
[BlackElo "1798"]
[Annotator "NA RC"]
[PlyCount "105"]
[EventDate "2018.11.04"]
[EventType "swiss"]
[EventCountry "ESP"]
[SourceTitle "playchess.com"]
[Source "ChessBase"]
[SourceQuality "1"]
[TimeControl "40/5400+30:1800+30"]

1. e4 {[%emt 0:00:00]} d5 {[%emt 0:00:00]} 2. exd5 {[%emt 0:00:00]} Qxd5 {[%emt 0:00:00]} 3. Nc3 {[%emt 0:00:16]} Qd8 {[%emt 0:00:00]} 4. d4 {[%emt 0:00:23]} Nf6 {[%emt 0:00:00]} 5. Nf3 {[%emt 0:00:22]} Bg4 {[%emt 0:00:00]} 6. h3 {[%emt 0:00:54]} Bxf3 {[%emt 0:00:00]} 7. Qxf3 {[%emt 0:00:31]} c6 {[%emt 0:00:00]} 8. Be3 {[%emt 0:00:21]} e6 {[%emt 0:00:00]} 9. Bd3 {[%emt 0:00:19]} Nbd7 {[%emt 0:03:45]} 10. O-O-O {[%emt 0:00:29]} Bb4 11. Ne2 {[%emt 0:10:06]} O-O {[%emt 0:07:04]} 12. Nf4 {[%emt 0:02:19]} Qa5 {[%emt 0:05:27]} 13. Kb1 {[%emt 0:05:30]} e5 {[%emt 0:14:42]} 14. Nh5 {[%emt 0:05:30]} Rfe8 {[%emt 0:22:34]} 15. Nxf6+ {[%emt 0:02:32]} Nxf6 {[%emt 0:00:18]} 16. dxe5 {[%emt 0:00:25]} Rxe5 {[%emt 0:03:57]} 17. Bd4 {[%emt 0:01:33]} Re6 {[%emt 0:00:36]} 18. a3 {[%emt 0:01:27]} Bf8 {[%emt 0:04:36]} 19. Bc3 {[%emt 0:07:14]} Qc5 {[%emt 0:07:30]} 20. Bb4 {[%emt 0:04:29]} Qb6 {[%emt 0:02:00]} 21. Bc4 {[%emt 0:03:51]} Ree8 {[%emt 0:01:50]} 22. Bc3 {[%emt 0:02:25]} Be7 {[%emt 0:06:50]} 23. g4 {[%emt 0:05:05]} Rf8 {[%emt 0:03:58]} 24. Rhe1 {[%emt 0:01:40]} Rae8 {[%emt 0:03:05]} 25. Re2 {[%emt 0:12:55]} Bd8 {[%emt 0:07:13]} 26. Rxe8 {[%emt 0:06:04]} Nxe8 {[%emt 0:00:19]} 27. Rd7 {[%emt 0:07:34]} Bf6 {[%emt 0:02:01]} 28. g5 {[%emt 0:01:54]} Bxc3 {[%emt 0:00:23]} 29. Bxf7+ {[%emt 0:01:12]} Kh8 {[%emt 0:00:13]} 30. Qxc3 {[%emt 0:00:16]} Nd6 {[%emt 0:01:34]} 31. Qe5 {[%emt 0:05:35]} Nxf7 {[%emt 0:04:16]} 32. Rxf7 {[%emt 0:00:07]} Rg8 {[%emt 0:00:15]} 33. Qe7 {[%emt 0:06:13]} Qd4 {[%emt 0:01:30]} 34. Rf8 {[%emt 0:04:47]} Qd1+ {[%emt 0:00:33]} 35. Ka2 {[%emt 0:00:03]} Qd5+ {[%emt 0:00:24]} 36. b3 {[%emt 0:00:05]} a5 {[%emt 0:00:34]} 37. Rxg8+ {[%emt 0:01:01]} Qxg8 {[%emt 0:00:03]} 38. Qxb7 {[%emt 0:00:28]} Qe8 {[%emt 0:00:47]} 39. Qa7 {[%emt 0:00:48]} Qd8 {[%emt 0:00:26]} 40. Qc5 {[%emt 0:00:00]} g6 {[%emt 0:00:00]} 41. a4 {[%emt 0:06:38]} Kg7 {[%emt 0:04:28]} 42. f4 {[%emt 0:02:34]} Qa8 {[%emt 0:09:45]} 43. Qe7+ {[%emt 0:01:48]} Kg8 {[%emt 0:00:37]} 44. Qe6+ {[%emt 0:01:51]} Kg7 {[%emt 0:00:55]} 45. h4 {[%emt 0:00:30]} Qa6 {[%emt 0:12:00]} 46. f5 {[%emt 0:01:19]} gxf5 {[%emt 0:00:20]} 47. Qxf5 {[%emt 0:02:47]} Qb6 {[%emt 0:03:11]} 48. Qf6+ {[%emt 0:01:48]} Kg8 {[%emt 0:00:19]} 49. h5 {[%emt 0:00:58]} Qc5 {[%emt 0:00:32]} 50. Kb2 {[%emt 0:00:23]} Qb4 {[%emt 0:02:40]} 51. h6 {[%emt 0:00:15]} Qf8 {[%emt 0:00:08]} 52. Qxf8+ {[%emt 0:00:34]} Kxf8 {[%emt 0:00:02]} 53. b4 {[%emt 0:00:03]} 1-0

[Event "FIDE WCCC G12 2018"]
[Site "Santiago de Compostela"]
[Date "2018.11.14"]
[Round "10"]
[White "Minaeva, Juliana"]
[Black "Nadzamova, Viktoria"]
[Result "1-0"]
[ECO "D02"]
[WhiteElo "1608"]
[BlackElo "1923"]
[Annotator "NA RC"]
[PlyCount "91"]
[EventDate "2018.11.04"]
[EventType "swiss"]
[EventCountry "ESP"]
[SourceTitle "playchess.com"]
[Source "ChessBase"]
[SourceQuality "1"]
[TimeControl "40/5400+30:1800+30"]

{[%evp 14,91,0,-12,0,-11,0,-2,-4,-11,-9,-33,8,-22,32767,32767,32767,-31,32767,32767,32767,32767,32767,0,-6,-22,32767,32767,-43,-22,-28,-31,215,32767,32767,-21,-34,32767,0,0,0,-6,0,-10,-10,-11,52,-24,-4,0,0,32767,32767,-18,32767,-33,22,-22,12,16,32767,-15,32767,32767,32767,32767,32767,32767,32767,507,497,543,498,32767,29989,1421,32767,1165,29998,29999]} 1. d4 {[%emt 0:00:00]} d5 {[%emt 0:00:00]} 2. Bf4 {[%emt 0:00:00]} Nf6 {[%emt 0:00:00]} 3. Nf3 {[%emt 0:00:29]} e6 {[%emt 0:00:04]} 4. e3 {[%emt 0:00:29]} Bd6 {[%emt 0:00:41]} 5. Bg3 {[%emt 0:00:46]} O-O {[%emt 0:00:42]} 6. Bd3 {[%emt 0:01:25]} c5 {[%emt 0:01:50]} 7. c3 {[%emt 0:00:37]} Qc7 {[%emt 0:09:44]} 8. Nbd2 {[%emt 0:07:27]} Nbd7 {[%emt 0:02:03]} 9. O-O {[%emt 0:02:49] D02: 1 d4 d5 2 Nf3 sidelines, including 2...Nf6 3 g3 and 2...Nf6 3 Bf4} e5 {[%emt 0:02:03]} 10. dxe5 {[%emt 0:03:13]} Nxe5 {[%emt 0:00:28]} 11. Nxe5 {[%emt 0:13:32]} Bxe5 {[%emt 0:00:16] LiveBook: 5 Games} 12. Qc2 {[%emt 0:10:01]} g6 $146 {[%emt 0:13:56]} ({Predecessor:} 12... Bxg3 13. hxg3 b6 14. e4 Bb7 15. exd5 Bxd5 16. Rfe1 Rfe8 17. Ne4 Bxe4 18. Bxe4 Nxe4 19. Rxe4 Qc6 20. Rae1 {½-½ (20) Korobov,A (2685)-Romanov,E (2611) Biograd 2018}) 13. Nf3 {[%emt 0:11:18]} Bxg3 {[%emt 0:03:29]} 14. hxg3 {[%emt 0:01:09]} Bd7 {[%emt 0:04:42]} 15. Rfe1 {[%emt 0:04:23]} Rfe8 {[%emt 0:01:24]} 16. Rac1 {[%emt 0:03:01]} Rad8 {[%emt 0:03:42]} 17. c4 {[%emt 0:04:05]} dxc4 {[%emt 0:02:15]} 18. Bxc4 {[%emt 0:02:18]} Bf5 {[%emt 0:01:11]} 19. Qb3 {[%emt 0:03:00]} Ne4 {[%emt 0:02:31]} 20. Bd5 {[%emt 0:06:25]} b6 {[%emt 0:02:50]} 21. Red1 {[%emt 0:02:41]} h6 {[%emt 0:08:34]} 22. Nd4 {[%emt 0:07:07]} Bc8 $2 {[%emt 0:06:55]} (22... Bg4 $11 {and Black has nothing to worry.} 23. Nf3 Nf6) 23. Nb5 {[%emt 0:02:39]} Qe7 {[%emt 0:05:39]} 24. Qc2 $2 {[%emt 0:05:10]} (24. Bxe4 $1 $18 Qxe4 25. Nd6) 24... Bf5 {[%emt 0:06:02]} 25. Qc4 {[%emt 0:03:20]} Qf6 {[%emt 0:01:56]} (25... a6 $15 26. Nc3 b5) 26. Bxe4 {[%emt 0:00:56]} Bxe4 {[%emt 0:01:49]} 27. Rxd8 {[%emt 0:01:23]} Qxd8 {[%emt 0:00:09]} 28. Nc3 {[%emt 0:00:19]} Bc6 {[%emt 0:03:25]} 29. Rd1 {[%emt 0:00:30]} Qa8 {[%emt 0:03:18]} ({Black should play} 29... Qe7 $11) 30. Qf1 {[%emt 0:00:08]} (30. Rd6 $14 Kg7 31. Qf4 Bxg2 32. Rd7) 30... Qb7 {[%emt 0:00:32]} 31. Rd6 {[%emt 0:00:55]} Re5 {[%emt 0:01:24]} 32. Rd8+ {[%emt 0:01:58]} Kg7 {[%emt 0:00:11]} 33. Rd6 {[%emt 0:01:23]} h5 {[%emt 0:00:58]} 34. Ne2 {[%emt 0:00:33]} g5 {[%emt 0:01:22]} ({Günstiger ist} 34... Rd5 $15 35. Rxd5 Bxd5) 35. Rd8 {[%emt 0:00:30]} Bd5 {[%emt 0:03:03]} 36. Nc3 {[%emt 0:00:12]} Bc6 {[%emt 0:00:41]} 37. Ne2 {[%emt 0:00:31]} h4 {[%emt 0:03:17]} 38. gxh4 {[%emt 0:00:24]} gxh4 {[%emt 0:00:17]} 39. Nf4 {[%emt 0:00:25]} Rg5 {[%emt 0:00:32]} 40. b3 {[%emt 0:00:00]} h3 {[%emt 0:00:00]} 41. Qa1+ {[%emt 0:04:48]} f6 {[%emt 0:15:27]} 42. Ne6+ {[%emt 0:01:31]} Kg6 {[%emt 0:04:00]} 43. Nxg5 {[%emt 0:06:29]} fxg5 {[%emt 0:01:55]} 44. Rd6+ $18 {[%emt 0:04:43]} (44. Rg8+ $142 Kf5 45. Rf8+ Ke6 46. Qf6+ Kd5 47. Qf5+ Kd6 48. Rf6+ Kc7 49. Qe5+ Kc8 50. Rf8+ Be8 51. Rxe8+ Kd7 52. Re7+ Kd8 53. Qd6+ Kc8 54. Re8#) 44... Kh7 {[%emt 0:01:15]} 45. Qf6 {[%emt 0:01:46]} Bxg2 {[%emt 0:00:51]} 46. Qg6+ {[%emt 0:00:11]} 1-0

[Event "FIDE WCCC G12 2018"]
[Site "Santiago de Compostela"]
[Date "2018.11.14"]
[Round "10"]
[White "Pang, Ashley"]
[Black "Mihelic, Vesna"]
[Result "1-0"]
[ECO "C29"]
[WhiteElo "1604"]
[BlackElo "1741"]
[Annotator "NA RC"]
[PlyCount "55"]
[EventDate "2018.11.04"]
[EventType "swiss"]
[EventCountry "ESP"]
[SourceTitle "playchess.com"]
[Source "ChessBase"]
[SourceQuality "1"]
[TimeControl "40/5400+30:1800+30"]

1. e4 {[%emt 0:00:00]} e5 {[%emt 0:00:00]} 2. Nc3 {[%emt 0:00:00]} Nf6 {[%emt 0:00:00]} 3. f4 {[%emt 0:00:00]} d5 {[%emt 0:05:35]} 4. fxe5 {[%emt 0:00:00]} Nxe4 {[%emt 0:00:45]} 5. Nf3 {[%emt 0:00:04]} Bc5 {[%emt 0:05:01]} 6. d4 {[%emt 0:04:21]} Bb4 {[%emt 0:00:48]} 7. Bd2 {[%emt 0:01:50]} Nxd2 {[%emt 0:10:24]} 8. Qxd2 {[%emt 0:01:00]} Bg4 {[%emt 0:02:54]} 9. Bd3 {[%emt 0:09:52]} O-O {[%emt 0:09:44]} 10. Qf4 {[%emt 0:05:19]} Bh5 {[%emt 0:09:55]} 11. h4 {[%emt 0:12:30]} Qd7 {[%emt 0:02:51]} 12. Bf5 {[%emt 0:04:08]} Qc6 {[%emt 0:00:12]} 13. Kd2 {[%emt 0:02:27]} Nd7 {[%emt 0:06:57]} 14. g4 {[%emt 0:05:25]} Bg6 {[%emt 0:00:16]} 15. h5 {[%emt 0:02:12]} Bxf5 {[%emt 0:00:24]} 16. gxf5 {[%emt 0:08:17]} Nb6 {[%emt 0:01:57]} 17. a3 {[%emt 0:12:36]} Nc4+ {[%emt 0:04:38]} 18. Ke2 {[%emt 0:05:48]} Nxb2 {[%emt 0:05:40]} 19. f6 {[%emt 0:06:03]} Bxc3 {[%emt 0:16:54]} 20. Qg5 {[%emt 0:04:05]} Qc4+ {[%emt 0:00:28]} 21. Ke3 {[%emt 0:02:12]} Bxd4+ {[%emt 0:00:34]} 22. Nxd4 {[%emt 0:00:36]} Qc3+ {[%emt 0:00:19]} 23. Ke2 {[%emt 0:00:27]} Qc4+ {[%emt 0:00:17]} 24. Ke3 {[%emt 0:00:15]} Qc3+ {[%emt 0:00:47]} 25. Ke2 {[%emt 0:01:29]} Qc4+ {[%emt 0:00:19]} 26. Kf3 {[%emt 0:01:26]} Qc3+ {[%emt 0:04:18]} 27. Kg2 {[%emt 0:00:38]} g6 {[%emt 0:00:22]} 28. Qh6 1-0

[Event "FIDE WCCC G12 2018"]
[Site "Santiago de Compostela"]
[Date "2018.11.14"]
[Round "10"]
[White "Oz, Irem Ezra"]
[Black "Van Foreest, Machteld"]
[Result "0-1"]
[ECO "C11"]
[WhiteElo "1564"]
[BlackElo "2003"]
[Annotator "NA RC"]
[PlyCount "181"]
[EventDate "2018.11.04"]
[EventType "swiss"]
[EventCountry "ESP"]
[SourceTitle "playchess.com"]
[Source "ChessBase"]
[SourceQuality "1"]
[TimeControl "40/5400+30:1800+30"]

{[%evp 15,175,-2,2,8,90,70,126,44,150,57,94,43,52,49,75,68,102,53,32767,76,79,89,72,9,67,50,32767,0,32767,62,94,96,32767,82,70,32767,32767,0,6,32767,4,0,0,32767,32767,62,89,63,32767,32767,32767,5,32767,0,32767,32767,0,32767,32767,-91,32767,32767,32767,32767,-216,-344,0,32767,32767,-361,32767,32767,-223,-220,-221,-261,-258,-417,-460,-457,-474,-463,-470,-476,-470,-474,-545,-524,-554,-671,-566,-606,-690,-685,-710,32767,-970,-933,-664,-681,-600,32767,-653,-558,-610,-769,-415,-12849,-681,-472,-543,-981,-1200,-503,-1522,-1536,-843,-1569,-12851,-1576,-1006,-1725,-12851,-12851,0,-12851,-12851,-1128,-683,-1547,-5818,-703,-11952,-29977,-29979,-29982,-29977,-29984,-29981,-29984,-29984,-29987,-29977,-29985,-29985,-29987,-29988,-29988,-29986,-29989,-29988,-29988,-29989,32767,32767,32767,32767,32767,32767,-29990,-29991,-29992]} 1. e4 {[%emt 0:00:00]} e6 {[%emt 0:00:00]} 2. d4 {[%emt 0:00:19]} d5 {[%emt 0:00:00]} 3. Nc3 {[%emt 0:00:33]} Nf6 {[%emt 0:00:16]} 4. e5 {[%emt 0:00:58]} Nfd7 {[%emt 0:00:12]} 5. Nce2 {[%emt 0:00:29]} c5 {[%emt 0:00:50]} 6. c3 {[%emt 0:00:18]} Nc6 {[%emt 0:01:11]} 7. Nf3 {[%emt 0:01:55]} Be7 {[%emt 0:05:28]} 8. a3 {[%emt 0:01:42] LiveBook: 15 Games C11: French: Classical System: 4 e5 and 4 Bg5 dxe4} b5 {[%emt 0:08:11]} 9. Nf4 {[%emt 0:02:19]} b4 {[%emt 0:05:22]} (9... cxd4 $11 {hält das Gleichgewicht.} 10. cxd4 Qa5+ 11. Bd2 Qb6) 10. axb4 {[%emt 0:03:16]} cxb4 {[%emt 0:04:55]} (10... cxd4 $14 11. Bb5 (11. cxd4 Bxb4+ 12. Bd2 Bxd2+ 13. Qxd2 Qb6 $11) (11. Nxd4 Ndxe5 12. Nxc6 Nxc6 $14) 11... Qb6 12. Bxc6 Qxc6) 11. Bd3 {[%emt 0:02:29]} ({Better is} 11. c4 $16) 11... Qb6 $146 {[%emt 0:08:43]} ({Predecessor:} 11... a5 $14 12. h4 Ba6 13. Ng5 Bxd3 14. Qxd3 Bxg5 15. hxg5 Qxg5 16. Rxh7 Rxh7 17. Qxh7 {0-1 (26) Dominguez Perez,L (2739)-Meier,G (2628) chess.com INT 2018}) 12. Qc2 {[%emt 0:07:08]} (12. Nh5 $16) 12... g6 {[%emt 0:12:07]} 13. h4 {[%emt 0:05:19]} a5 {[%emt 0:07:57]} 14. Ne2 {[%emt 0:24:08]} h6 {[%emt 0:07:15]} 15. Nf4 {[%emt 0:03:59]} Nf8 {[%emt 0:01:13]} 16. g3 {[%emt 0:11:01]} a4 {[%emt 0:03:10]} 17. O-O {[%emt 0:03:36]} ({Viel schlechter ist} 17. Rxa4 b3 $15) 17... b3 {[%emt 0:07:26]} 18. Qe2 {[%emt 0:00:41]} Nd7 {[%emt 0:02:20]} 19. Bb5 {[%emt 0:04:11]} (19. Be3 $16) 19... g5 {[%emt 0:03:32]} (19... Ra5 $11 20. Bd3 (20. Bxa4 Ba6 $15) 20... Bb7) 20. hxg5 {[%emt 0:02:02]} hxg5 {[%emt 0:01:32]} 21. Ng2 {[%emt 0:00:37]} (21. Nxg5 $16 Bxg5 {[#]} 22. Nxd5 $1 {[%mdl 512]} exd5 23. Bxg5) 21... Rb8 {[%emt 0:04:38]} 22. Bd3 {[%emt 0:06:13]} g4 {[%emt 0:04:44]} 23. Nh2 {[%emt 0:05:10] [#]} a3 $1 {[%emt 0:01:30]} 24. Nxg4 {[%emt 0:01:23]} a2 {[%emt 0:02:18]} 25. Bf4 {[%emt 0:01:22]} Ra8 {[%emt 0:00:40]} 26. Qf3 {[%emt 0:01:30]} Ba6 {[%emt 0:00:46]} 27. Bxa6 {[%emt 0:00:53]} Rxa6 {[%emt 0:00:41]} 28. Nh6 {[%emt 0:01:53]} Na5 {[%emt 0:01:53]} 29. Bc1 {[%emt 0:01:42]} Rf8 {[%emt 0:00:06]} 30. Qg4 {[%emt 0:02:28]} Ba3 {[%emt 0:04:33]} 31. Nf4 {[%emt 0:02:07]} ({Stronger than} 31. bxa3 b2 $15) 31... Nc4 {[%emt 0:00:25]} 32. Qe2 {[%emt 0:00:14]} Rh8 {[%emt 0:00:39]} 33. Nd3 {[%emt 0:01:33]} Bf8 {[%emt 0:00:39]} 34. Ng4 $1 {[%emt 0:00:24]} Qb7 {[%emt 0:00:43]} 35. Ne3 {[%emt 0:00:37]} Ndb6 {[%emt 0:00:14]} (35... f6 $17 36. Qf3 Nxe3 37. Bxe3 fxe5) 36. Nxc4 {[%emt 0:00:23]} Nxc4 {[%emt 0:00:21]} 37. Bg5 {[%emt 0:00:26]} Be7 {[%emt 0:00:21]} 38. Bxe7 {[%emt 0:00:32]} Qxe7 {[%emt 0:00:03]} 39. Kg2 {[%emt 0:00:17] [#]} Qg5 $1 {[%emt 0:00:56]} 40. Qd1 $2 {[%emt 0:00:00]} (40. Rh1 Rxh1 41. Kxh1) 40... Qd2 $2 {[%emt 0:00:00]} (40... Qf5 $19 41. Nc5 Qh3+ 42. Kf3 Rc6) 41. Qxd2 {[%emt 0:18:45]} Nxd2 {[%emt 0:00:59]} 42. Rh1 $2 {[%emt 0:00:16]} (42. Rfe1 $17) 42... Rxh1 {[%emt 0:01:24]} 43. Kxh1 {[%emt 0:00:09]} Ne4 {[%emt 0:06:51]} 44. Kg2 {[%emt 0:10:36]} Rc6 {[%emt 0:00:06]} 45. Nc1 {[%emt 0:02:07] [#]} Rxc3 $1 {[%emt 0:04:26]} 46. Nxb3 $2 {[%emt 0:02:21]} (46. Nxa2 Rc2 47. Nc1) 46... Rxb3 {[%emt 0:00:15]} 47. Rxa2 {[%emt 0:00:06]} Rb4 {[%emt 0:00:41]} 48. f3 {[%emt 0:00:37]} Nd2 {[%emt 0:00:13]} 49. Ra8+ {[%emt 0:01:24]} Ke7 {[%emt 0:00:06]} 50. Ra7+ {[%emt 0:00:04]} Kf8 {[%emt 0:00:02]} 51. f4 {[%emt 0:00:09]} Rxb2 {[%emt 0:00:26]} 52. Kh3 {[%emt 0:00:11]} Rb4 {[%emt 0:00:03]} 53. Kg4 {[%emt 0:00:17]} Rxd4 {[%emt 0:00:21]} 54. Kg5 {[%emt 0:00:08]} Kg7 {[%emt 0:00:14]} 55. f5 {[%emt 0:00:22]} Ne4+ {[%emt 0:03:07]} 56. Kf4 {[%emt 0:00:13]} exf5 {[%emt 0:00:21]} 57. Ke3 {[%emt 0:00:57]} Rc4 {[%emt 0:00:43]} 58. e6 {[%emt 0:00:24]} Kf6 {[%emt 0:02:58]} 59. exf7 {[%emt 0:00:12]} Rc8 {[%emt 0:00:05]} 60. Rd7 {[%emt 0:00:36]} Rf8 {[%emt 0:01:42]} 61. Rxd5 {[%emt 0:00:33]} Nxg3 {[%emt 0:00:08]} 62. Rd6+ {[%emt 0:01:29]} Ke5 {[%emt 0:00:44]} 63. Rd7 {[%emt 0:00:13]} Ke6 {[%emt 0:01:26]} 64. Ra7 {[%emt 0:00:14]} Nh5 {[%emt 0:00:54]} 65. Ra6+ {[%emt 0:00:50]} Kxf7 {[%emt 0:00:04]} 66. Rh6 {[%emt 0:00:10]} Nf6 {[%emt 0:00:11]} 67. Kf4 {[%emt 0:00:27]} Ke6 {[%emt 0:00:57]} 68. Rh1 {[%emt 0:00:52]} Nd5+ {[%emt 0:02:06]} 69. Kf3 {[%emt 0:00:10]} Nf6 $2 {[%emt 0:02:51]} (69... Rb8 $19 70. Re1+ Kd6) 70. Re1+ {[%emt 0:00:21]} Ne4 {[%emt 0:00:13]} 71. Ra1 {[%emt 0:00:08]} Rh8 {[%emt 0:02:12]} 72. Ra6+ {[%emt 0:00:35]} Ke5 {[%emt 0:00:07]} 73. Ra5+ {[%emt 0:00:09]} Kf6 {[%emt 0:00:05]} 74. Ra1 {[%emt 0:00:19]} Rh3+ {[%emt 0:00:12]} 75. Kg2 {[%emt 0:00:54]} Rg3+ {[%emt 0:00:19]} 76. Kf1 {[%emt 0:00:33]} Kg5 {[%emt 0:00:10]} 77. Ra2 {[%emt 0:00:13]} Kg4 {[%emt 0:01:20]} 78. Ra4 {[%emt 0:00:15]} Rb3 {[%emt 0:00:29]} 79. Kg2 {[%emt 0:01:21]} Rc3 {[%emt 0:00:51]} 80. Rb4 {[%emt 0:00:16]} Rc2+ {[%emt 0:00:03]} 81. Kf1 {[%emt 0:00:17]} Kf3 {[%emt 0:00:12]} 82. Rb3+ {[%emt 0:00:17]} Rc3 {[%emt 0:00:03]} 83. Rxc3+ {[%emt 0:00:30]} Nxc3 {[%emt 0:00:03]} 84. Ke1 {[%emt 0:00:08]} Kg2 {[%emt 0:00:02]} 85. Kd2 {[%emt 0:00:03]} f4 {[%emt 0:00:02]} 86. Kxc3 {[%emt 0:00:04]} f3 {[%emt 0:00:02]} 87. Kd3 {[%emt 0:00:03]} f2 {[%emt 0:00:02]} 88. Ke3 {[%emt 0:00:05]} f1=Q {[%emt 0:00:06]} 89. Ke4 {[%emt 0:00:03]} Qf3+ {[%emt 0:00:06]} 90. Ke5 {[%emt 0:00:04]} Kg3 {[%emt 0:00:04]} 91. Ke6 {[%emt 0:00:05]} 0-1

[Event "FIDE WCCC G12 2018"]
[Site "Santiago de Compostela"]
[Date "2018.11.14"]
[Round "10"]
[White "Mellor, Jessica"]
[Black "Munkhzul, Davaakhuu"]
[Result "0-1"]
[ECO "B23"]
[WhiteElo "1555"]
[BlackElo "1781"]
[Annotator "NA RC"]
[PlyCount "180"]
[EventDate "2018.11.04"]
[EventType "swiss"]
[EventCountry "ESP"]
[SourceTitle "playchess.com"]
[Source "ChessBase"]
[SourceQuality "1"]
[TimeControl "40/5400+30:1800+30"]

1. e4 {[%emt 0:00:00]} c5 {[%emt 0:00:00]} 2. Nc3 {[%emt 0:00:00]} Nc6 {[%emt 0:00:00]} 3. f4 {[%emt 0:00:00]} g6 {[%emt 0:00:34]} 4. Nf3 {[%emt 0:00:05]} Bg7 {[%emt 0:00:08]} 5. Bb5 {[%emt 0:00:21]} a6 {[%emt 0:01:33]} 6. Bxc6 {[%emt 0:00:36]} dxc6 {[%emt 0:01:36]} 7. O-O {[%emt 0:00:57]} Nf6 {[%emt 0:03:48]} 8. d3 {[%emt 0:02:32]} O-O {[%emt 0:01:19]} 9. Qe1 {[%emt 0:00:42]} Be6 {[%emt 0:05:51]} 10. Qh4 {[%emt 0:03:45]} h5 {[%emt 0:06:07]} 11. Qg3 {[%emt 0:04:35]} Kh8 {[%emt 0:13:40]} 12. Nh4 {[%emt 0:17:34]} Rg8 {[%emt 0:09:05]} 13. h3 {[%emt 0:07:54]} Nh7 {[%emt 0:02:10]} 14. Qf3 {[%emt 0:02:24]} Bd7 {[%emt 0:01:25]} 15. g4 {[%emt 0:09:44]} Bd4+ {[%emt 0:01:53]} 16. Kh1 {[%emt 0:01:05]} e5 {[%emt 0:01:31]} 17. Ng2 {[%emt 0:01:30]} Qf6 {[%emt 0:03:42]} 18. g5 {[%emt 0:02:30]} Qg7 {[%emt 0:01:35]} 19. Qg3 {[%emt 0:03:53]} f6 {[%emt 0:10:02]} 20. h4 {[%emt 0:03:25]} Raf8 {[%emt 0:01:42]} 21. Bd2 {[%emt 0:01:43]} f5 {[%emt 0:01:45]} 22. Rae1 {[%emt 0:05:10]} fxe4 {[%emt 0:05:51]} 23. Rxe4 {[%emt 0:03:37]} Bf5 {[%emt 0:00:22]} 24. Ree1 {[%emt 0:01:21]} Re8 {[%emt 0:00:13]} 25. Be3 {[%emt 0:07:22]} Rgf8 {[%emt 0:01:56]} 26. Bxd4 {[%emt 0:02:26]} cxd4 {[%emt 0:00:29]} 27. Ne4 {[%emt 0:00:35]} Bxe4 {[%emt 0:00:39]} 28. Rxe4 {[%emt 0:01:23]} exf4 {[%emt 0:00:41]} 29. Rexf4 {[%emt 0:01:46]} Kg8 {[%emt 0:01:31]} 30. Kg1 {[%emt 0:00:25]} Rxf4 {[%emt 0:00:34]} 31. Nxf4 {[%emt 0:02:56]} Re3 {[%emt 0:01:57]} 32. Rf3 {[%emt 0:00:46]} Qe5 {[%emt 0:02:48]} 33. Rxe3 {[%emt 0:01:30]} dxe3 {[%emt 0:00:03]} 34. Kf1 {[%emt 0:01:49]} Nf8 {[%emt 0:03:43]} 35. Qf3 {[%emt 0:02:13]} Qxb2 {[%emt 0:00:48]} 36. Qxe3 {[%emt 0:00:37]} Qb1+ {[%emt 0:00:41]} 37. Qe1 {[%emt 0:00:22]} Qxc2 {[%emt 0:00:14]} 38. Ne6 {[%emt 0:03:01]} Qxd3+ {[%emt 0:00:56]} 39. Kg1 {[%emt 0:00:15]} Qc4 {[%emt 0:01:58]} 40. Nxf8 {[%emt 0:00:00]} Kxf8 {[%emt 0:00:00]} 41. Qf2+ {[%emt 0:01:38]} Qf7 {[%emt 0:00:17]} 42. Qd4 {[%emt 0:02:11]} Ke7 {[%emt 0:01:46]} 43. Qe5+ {[%emt 0:00:52]} Kd7 {[%emt 0:00:18]} 44. Qd4+ {[%emt 0:00:24]} Kc7 {[%emt 0:00:05]} 45. Qe5+ {[%emt 0:00:20]} Kb6 {[%emt 0:00:38]} 46. Qd4+ {[%emt 0:00:25]} Kc7 {[%emt 0:00:44]} 47. Qe5+ {[%emt 0:00:15]} Kd7 {[%emt 0:00:14]} 48. Qd4+ {[%emt 0:00:12]} Ke8 {[%emt 0:02:17]} 49. Qe5+ {[%emt 0:01:07]} Kf8 {[%emt 0:00:33]} 50. Qh8+ {[%emt 0:00:53]} Qg8 {[%emt 0:01:00]} 51. Qf6+ {[%emt 0:00:08]} Ke8 {[%emt 0:00:06]} 52. Qe5+ {[%emt 0:00:09]} Kd7 {[%emt 0:00:35]} 53. Qd4+ {[%emt 0:00:20]} Kc8 {[%emt 0:00:14]} 54. Qe5 {[%emt 0:06:57]} b5 {[%emt 0:02:18]} 55. Qe4 {[%emt 0:01:39]} Kb7 {[%emt 0:00:45]} 56. Qe7+ {[%emt 0:03:01]} Kb6 {[%emt 0:02:30]} 57. Qe3+ {[%emt 0:01:15]} Kb7 {[%emt 0:05:46]} 58. Qe7+ {[%emt 0:00:30]} Kc8 {[%emt 0:00:46]} 59. Qe4 {[%emt 0:00:56]} Kd7 {[%emt 0:01:12]} 60. Qd4+ {[%emt 0:00:33]} Kc8 {[%emt 0:03:55]} 61. Qe4 {[%emt 0:00:44]} Kb7 {[%emt 0:01:49]} 62. Qe7+ {[%emt 0:02:00]} Kb6 {[%emt 0:00:33]} 63. Qe3+ {[%emt 0:00:20]} c5 {[%emt 0:01:42]} 64. Qe5 {[%emt 0:01:34]} Qxa2 {[%emt 0:00:25]} 65. Qd6+ {[%emt 0:00:33]} Ka5 {[%emt 0:00:05]} 66. Qxc5 {[%emt 0:01:30]} Qe6 {[%emt 0:00:52]} 67. Qc3+ {[%emt 0:00:27]} b4 {[%emt 0:00:24]} 68. Qa1+ {[%emt 0:02:03]} Kb5 {[%emt 0:00:08]} 69. Qf1+ {[%emt 0:01:09]} Qc4 {[%emt 0:00:08]} 70. Qe1 {[%emt 0:02:00]} b3 {[%emt 0:00:47]} 71. Qe8+ {[%emt 0:00:38]} Qc6 {[%emt 0:00:06]} 72. Qe2+ {[%emt 0:00:25]} Ka4 {[%emt 0:00:28]} 73. Qe5 {[%emt 0:02:33]} Qc1+ {[%emt 0:02:00]} 74. Kg2 {[%emt 0:00:32]} Qc2+ {[%emt 0:00:44]} 75. Kg1 {[%emt 0:01:46]} b2 {[%emt 0:00:21]} 76. Qe8+ {[%emt 0:00:42]} Kb4 {[%emt 0:00:35]} 77. Qb8+ {[%emt 0:01:48]} Kc3 {[%emt 0:00:19]} 78. Qc7+ {[%emt 0:00:33]} Kd2 {[%emt 0:00:08]} 79. Qd6+ {[%emt 0:00:28]} Kc1 {[%emt 0:00:15]} 80. Qf4+ {[%emt 0:01:03]} Kb1 {[%emt 0:00:07]} 81. Qb4 {[%emt 0:00:42]} Qd1+ {[%emt 0:00:52]} 82. Kg2 {[%emt 0:00:27]} Qg4+ {[%emt 0:00:39]} 83. Qxg4 {[%emt 0:00:10]} hxg4 {[%emt 0:00:02]} 84. Kg3 {[%emt 0:00:18]} Kc1 {[%emt 0:00:04]} 85. Kxg4 {[%emt 0:00:05]} b1=Q {[%emt 0:00:05]} 86. h5 {[%emt 0:00:09]} Qf5+ {[%emt 0:00:03]} 87. Kh4 {[%emt 0:00:14]} Qf4+ {[%emt 0:00:01]} 88. Kh3 {[%emt 0:00:08]} gxh5 {[%emt 0:00:04]} 89. g6 {[%emt 0:00:10]} Qg4+ {[%emt 0:00:06]} 90. Kh2 {[%emt 0:00:09]} Qxg6 0-1